Cogmind - Beta 15 @@@ ROGUE MODE // 2025.05.16 @ 18:43:01 Player: Polariusz Result: Destroyed by 6J-IHJ(R) with Subdweller Laser Performance ------------- Evolutions (0) 0 Regions Visited (3) 600 Robots Destroyed (21) 105 Value Destroyed (466) 466 Prototype IDs (0) 0 Alien Tech Used (0) 0 Bonus (0) 0 TOTAL SCORE: 1171 Bonus ------- None Cogmind --------- Core Integrity 0/250 Matter 221/300 Energy 125/125 System Corruption 0% Temperature Cool (6) Movement Treading (160) Location -10/Subcaves Parts ------- > --- POWER (1) -------- Light Ion Engine > --- PROPULSION (2) --- Light Treads Light Treads > --- UTILITY (2) ------ Large Storage Unit Hardened Medium Armor Plating > --- WEAPON (2) ------- Autogun Autogun > --- INVENTORY (15) --- Ion Engine Ion Engine Light Ion Engine Light Treads Compact Wheel Experimental Sensor Array Seismic Detector ECM Suite Improved Light Armor Plating Autogun Autogun Minigun Rocket Launcher Scythe Makeshift Axe Peak State ------------ > --- POWER ------------ Light Ion Engine > --- PROPULSION ------- Light Treads Light Treads > --- UTILITY ---------- Large Storage Unit Hardened Medium Armor Plating > --- WEAPON ----------- Autogun Autogun > --- INVENTORY -------- Ion Engine Ion Engine Light Ion Engine Light Treads Compact Wheel Experimental Sensor Array Seismic Detector ECM Suite Improved Light Armor Plating Autogun Autogun Minigun Rocket Launcher Scythe Makeshift Axe [Rating: 14] Favorites ----------- Power Light Ion Engine Engine Light Ion Engine Propulsion Light Treads Treads Light Treads Wheel Wheel Utility Seismic Detector Device Seismic Detector Storage Large Storage Unit Protection Hardened Medium Armor Plating Weapon Autogun Energy Gun Small Laser Ballistic Gun Autogun Impact Weapon Flail Build | -11 -10 -10 -10 ------- Run | Yrd Mat Min Sub Slots Evolved . | . . . . Power . | . . . . Propulsion . | . . . . Utility . | . . . . Weapon . | . . . . Parts Attached 18 | 6 7 4 1 Power 2 | 1 1 . . Engine 2 | 1 1 . . Core . | . . . . Reactor . | . . . . Propulsion 4 | 2 2 . . Treads 2 | . 2 . . Leg . | . . . . Wheel 2 | 2 . . . Hover . | . . . . Flight . | . . . . Utility 5 | 1 3 . 1 Device 1 | . 1 . . Storage 3 | 1 2 . . Processor . | . . . . Hackware . | . . . . Protection 1 | . . . 1 Artifact . | . . . . Weapon 7 | 2 1 4 . Energy Gun 1 | 1 . . . Energy Cannon . | . . . . Ballistic Gun 5 | 1 1 3 . Ballistic Cannon . | . . . . Launcher . | . . . . Special Weapon . | . . . . Impact Weapon 1 | . . 1 . Slashing Weapon . | . . . . Piercing Weapon . | . . . . Special Melee Weapon . | . . . . Unidentified Prototypes . | . . . . Parts Lost 5 | . 5 . . Power 1 | . 1 . . Propulsion 2 | . 2 . . Utility . | . . . . Weapon 2 | . 2 . . Highest Loss Streak 5 | . 5 . . To Critical Strikes . | . . . . Average Backups 11 | 2 9 14 15 Power 2 | . 2 3 3 Propulsion 2 | 2 2 2 2 Utility 1 | . . 2 4 Weapon 5 | . 3 7 6 Tool/Special . | . . . . Unused Backups 17 | . 1 3 13 Power 3 | . . . 3 Propulsion 3 | . 1 . 2 Utility 3 | . . . 3 Weapon 8 | . . 3 5 Tool/Special . | . . . . Average Slot Usage (%) 94 | . 87 99 100 Engine 13 | . 12 14 14 Treads 20 | . 11 28 28 Wheel 6 | . 14 . . Device 12 | . 11 14 7 Storage 14 | . 14 14 14 Energy Gun 3 | . 8 . . Ballistic Gun 21 | . 14 27 28 Peak Build Rating 14 | 6 8 12 14 Average Rating 8 | 3 6 11 12 On Entrance 6 | . 6 7 12 Naked Turns . | . . . . Heaviest Build 87 | 11 87 30 37 Greatest Support 40 | 20 40 40 40 Greatest Overweight (x) 4 | . 4 . . Average Overweight (x) . | . . . . Largest Inventory Capacity 25 | 8 25 15 15 Average Capacity 15 | 6 15 15 15 Most Carried 15 | 5 14 15 15 Average Carried 11 | 3 9 14 15 Final Capacity 15 | 8 15 15 15 Final Carried 15 | 3 14 15 15 Class Distribution -------------------- 100% | Mutant Dominant Class ---------------- Mutant | -10/Materials Mutant | -10/Mines Mutant | -10/Subcaves Resources | -11 -10 -10 -10 ----------- Run | Yrd Mat Min Sub Matter Collected 583 | 222 232 129 . Remotely . | . . . . Salvage Created 602 | . 418 129 55 Parts 32 | . 26 4 2 Haulers Intercepted . | . . . . Recyclers Shooed 1 | . 1 . . Parts Field Recycled . | . . . . Retrieved Matter . | . . . . Parts Self-Destructed . | . . . . Prevented . | . . . . Kills | -11 -10 -10 -10 ------- Run | Yrd Mat Min Sub Combat Hostiles Destroyed 19 | . 13 5 1 Guns 19 | . 13 5 1 Classes Destroyed 5 | . 4 . 1 Worker 1 | . 1 . . Operator 1 | . 1 . . Swarmer 9 | . 6 3 . Grunt 9 | . 7 2 . Subdweller 1 | . . . 1 Best Kill Streak 4 | . 4 3 1 Combat Bots Only 4 | . 4 3 1 Max Kills in Single Turn 2 | . 1 2 1 Gunslinging 1 | . . 1 . Exploded . | . . . . Melee . | . . . . Uniques/NPCs Destroyed . | . . . . Combat | -11 -10 -10 -10 -------- Run | Yrd Mat Min Sub Hostile Shots Fired 124 | . 68 27 29 Missed 38 | . 16 11 11 Hits 86 | . 52 16 18 Projectile 86 | . 52 16 18 Critical Strikes 1 | . . . 1 Damage Taken 1113 | . 590 138 385 Core 256 | . 182 36 38 Absorbed by Shields . | . . . . Core Remaining (%) 100 | 100 . . . Volleys Fired 70 | . 51 11 8 Largest 2 | . 2 2 2 Hottest 60 | . 60 46 46 Shots Fired 127 | . 89 22 16 Gun 127 | . 89 22 16 Cannon . | . . . . Launcher . | . . . . Special . | . . . . Kinetic 89 | . 51 22 16 Thermal 38 | . 38 . . Explosive . | . . . . Electromagnetic . | . . . . Robot Hit Streak 11 | . 9 11 11 Robot Miss Streak 3 | . 3 2 1 Penetration Max . | . . . . Secondary Targets 3 | . 1 1 1 Max Gunslinging Chain 1 | . 1 1 1 Shots Hit Robots 95 | . 62 18 15 Core Hits 32 | . 23 6 3 Critical Kills . | . . . . Critical Parts Destroyed . | . . . . Critical Strikes . | . . . . Melee Attacks 7 | . . 7 . Impact 7 | . . 7 . Slashing . | . . . . Piercing . | . . . . Sneak Attacks . | . . . . Combat Hostiles . | . . . . Follow-up Attacks . | . . . . Damage Inflicted 1267 | . 748 272 247 Guns 1267 | . 748 272 247 Cannons . | . . . . Explosions . | . . . . Melee . | . . . . Ramming . | . . . . Kinetic 971 | . 452 272 247 Thermal 296 | . 296 . . Explosive . | . . . . Electromagnetic . | . . . . Impact . | . . . . Slashing . | . . . . Piercing . | . . . . Highest Corruption . | . . . . Average Corruption . | . . . . Corruption Purged . | . . . . Corruption Blocked . | . . . . Overload Shots . | . . . . Overflow Damage . | . . . . Projectiles . | . . . . Explosions . | . . . . Melee . | . . . . Knockbacks . | . . . . Impact . | . . . . Kinetic . | . . . . Secondary . | . . . . Self-Inflicted Damage . | . . . . Shots . | . . . . Rammed . | . . . . Targets Rammed . | . . . . Kicked . | . . . . Crushed . | . . . . Highest Temperature 31 | . 31 18 . Average Temperature 10 | . 11 7 . Received Heat Transfer 402 | . 294 30 78 Siege Activations . | . . . . Martial Activations . | . . . . Shielding Activations . | . . . . Robots Disrupted . | . . . . Combat Hostiles . | . . . . Robots Corrupted . | . . . . Combat Hostiles . | . . . . Parts Fried . | . . . . Impact Corruptions . | . . . . Robots Melted . | . . . . Combat Hostiles . | . . . . Parts Melted 1 | . 1 . . Heat Transferred 675 | . 675 . . Parts Sabotaged . | . . . . Parts Stolen . | . . . . Parts Stripped . | . . . . Power Chain Reactions . | . . . . Alert | -11 -10 -10 -10 ------- Run | Yrd Mat Min Sub Maximum Alert Level . | . . . . Low Security (%) 100 | 100 100 100 . Level 1 . | . . . . Level 2 . | . . . . Level 3 . | . . . . Level 4 . | . . . . Level 5 . | . . . . High Security . | . . . . Max Security . | . . . . Peak Influence 96 | . 96 70 . Initial . | . . . . Average 22 | . 35 10 . Influence Increases 456 | . 346 110 . Destroy 0b10 Robot/C 360 | . 260 100 . Destroy 0b10 Robot/NC 10 | . 10 . . Destroy Leader 50 | . 40 10 . Successful Hack 4 | . 4 . . Destroy Structure 2 | . 2 . . Lose Combat Pursuer 30 | . 30 . . Influence Decreases 456 | . 346 110 . Time Decay 344 | . 234 110 . Lost Part 50 | . 50 . . Purge Threat 62 | . 62 . . Squads Dispatched 2 | . 1 1 . Investigation 1 | . . 1 . Extermination . | . . . . Reinforcement 1 | . 1 . . Assault . | . . . . Garrison . | . . . . Intercept . | . . . . Searches Triggered . | . . . . Construction Impeded . | . . . . Haulers Reinforced . | . . . . Active Scanning Responses . | . . . . Cargo Convoy Interrupts . | . . . . Stealth | -11 -10 -10 -10 --------- Run | Yrd Mat Min Sub Distress Signals . | . . . . Communications Jammed . | . . . . Distress Signals . | . . . . Times Spotted 28 | . 19 5 4 Peak Tracking Total 8 | . 8 3 4 Tactical Retreats 2 | . 2 . . Traps | -11 -10 -10 -10 ------- Run | Yrd Mat Min Sub Traps Triggered . | . . . . Indirectly . | . . . . Trap Hack Attempts . | . . . . Triggered . | . . . . Disarmed . | . . . . Reprogrammed . | . . . . Reused . | . . . . Traps Extracted . | . . . . Installed . | . . . . Triggered . | . . . . Machines | -11 -10 -10 -10 ---------- Run | Yrd Mat Min Sub Machines Disabled . | . . . . Max in Single Turn . | . . . . Machines Repaired . | . . . . Machines Dismantled . | . . . . Machines Sabotaged . | . . . . Overloaded Fab Kills . | . . . . Hacking | -11 -10 -10 -10 --------- Run | Yrd Mat Min Sub Machines Accessed 4 | . 3 1 . Terminals 3 | . 3 . . Fabricators . | . . . . Repair Stations . | . . . . Recycling Units . | . . . . Scanalyzers . | . . . . Garrison Access . | . . . . Total Hacks 4 | . 3 1 . Successful 4 | . 3 1 . Failed . | . . . . Catastrophic . | . . . . Database Lockouts . | . . . . Manual 3 | . 3 . . Terminals 3 | . 3 . . Fabricators . | . . . . Repair Stations . | . . . . Recycling Units . | . . . . Scanalyzers . | . . . . Garrison Access . | . . . . Terminal Hacks 4 | . 3 1 . Open Door 1 | . . 1 . Unreport Threat 1 | . 1 . . Locate Traps 2 | . 2 . . Fabricator Hacks . | . . . . Repair Station Hacks . | . . . . Recycling Unit Hacks . | . . . . Scanalyzer . | . . . . Garrison Access Hacks . | . . . . Unauthorized Hacks . | . . . . Terminals . | . . . . Fabricators . | . . . . Repair Stations . | . . . . Recycling Units . | . . . . Scanalyzers . | . . . . Garrison Access . | . . . . Data Cores Recovered . | . . . . Used . | . . . . Hacking Detections 1 | . 1 . . Full Trace Events . | . . . . Feedback Events . | . . . . Feedback Blocked . | . . . . Robot Schematics Acquired . | . . . . Robots Built . | . . . . Authchips . | . . . . Time . | . . . . Total Robot Build Rating . | . . . . Part Schematics Acquired . | . . . . Parts Built . | . . . . Authchips . | . . . . Time . | . . . . Total Part Build Rating . | . . . . Parts Repaired . | . . . . Time . | . . . . Parts Recycled . | . . . . Recycled Matter . | . . . . Retrieved Matter . | . . . . Retrieved Components . | . . . . Parts Scanalyzed . | . . . . Part Schematics Acquired . | . . . . Parts Damaged . | . . . . Bothacking | -11 -10 -10 -10 ------------ Run | Yrd Mat Min Sub Used RIF Installer . | . . . . Robots Hacked . | . . . . Non-combat . | . . . . Combat . | . . . . Robot Hacks Applied . | . . . . Relay Couplers Released . | . . . . Fabnet Peak Effective % . | . . . . Robots Rewired . | . . . . Allies Hacked . | . . . . Hacks Repelled . | . . . . Allies | -11 -10 -10 -10 -------- Run | Yrd Mat Min Sub Total Allies . | . . . . Largest Group . | . . . . Highest-Rated Group . | . . . . Highest-Rated Ally . | . . . . Total Orders . | . . . . Ally Attacks . | . . . . Total Damage . | . . . . Kills . | . . . . Allies Corrupted . | . . . . Allies Melted . | . . . . Intel | -11 -10 -10 -10 ------- Run | Yrd Mat Min Sub Active Infowar (turns) 1301 | . 558 691 52 Seismic 1301 | . 558 691 52 Robot Analysis Total . | . . . . Derelict Logs Recovered 3 | . . 1 2 Drone Launches . | . . . . Drone Recoveries . | . . . . Exploration | -11 -10 -10 -10 ------------- Run | Yrd Mat Min Sub Turns Passed 1543 | 49 700 691 103 Spaces Moved 834 | 48 365 374 47 Core 14 | 14 . . . Treads 582 | . 161 374 47 Legs . | . . . . Wheels 238 | 34 204 . . Hover . | . . . . Flight . | . . . . Fastest Speed 50 | 50 80 160 160 Average Speed 140 | 71 126 160 160 Slowest Speed 160 | 80 160 160 160 Overloaded Moves . | . . . . Propulsion Burnouts . | . . . . Robots Hopped . | . . . . Potential Cave-ins . | . . . . Cave-ins Triggered . | . . . . Exploration Rate (%) 37 | 4 66 73 8 Regions Visited 3 Branch Regions 2 Pre-discovered Areas 1 | . . . 1 Known Exits Taken . | . . . . Unknown Exits Taken 3 | 1 1 1 . Scrap Searched . | . . . . Spaces Dug . | . . . . Terrain Destroyed . | . . . . Melee . | . . . . Projectile . | . . . . AOE . | . . . . Terrain Rammed . | . . . . Walls Destroyed . | . . . . Machines Disabled . | . . . . Actions | -11 -10 -10 -10 --------- Run | Yrd Mat Min Sub Total 1081 | 62 516 441 62 Wait 108 | . 70 32 6 Move 831 | 47 364 373 47 Hop . | . . . . Pick Up 37 | 9 20 8 . Fast Attach . | . . . . Attach 13 | 6 6 1 . Detach . | . . . . Swap 5 | . 1 3 1 Drop 10 | . 4 6 . Fire 70 | . 51 11 8 Melee 7 | . . 7 . Ram . | . . . . Kick . | . . . . Crush . | . . . . Escape Stasis . | . . . . Rewire . | . . . . Trap . | . . . . Miscellaneous . | . . . . Route ------- -11/Scrapyard -10/Materials (discovered 3 exits: [*Mat x2] / *Min) -10/Mines -10/Subcaves History --------- Turn | Location | Event 17 | -11/Scrapyard | Discovered new exit (range 16) 50 | -11/Scrapyard | Entered Materials 159 | -10/Materials | Discovered new exit (range 7) 308 | -10/Materials | Build established: Mutant 447 | -10/Materials | Core integrity fell below 50% 486 | -10/Materials | Lost 5 parts (1p2n2w) 517 | -10/Materials | Discovered new exit (range 11) 563 | -10/Materials | Discovered new exit (range 16) 750 | -10/Materials | Entered Mines 821 | -10/Mines | Received a Rocket Launcher from a helpful Derelict 897 | -10/Mines | Found a damaged Exp. Sensor Array with a note attached 900 | -10/Mines | Found Prototype Device 932 | -10/Mines | Excavation squad dispatched 932 | -10/Mines | A large section of the Mines collapsed 1182 | -10/Mines | Excavation squad dispatched 1206 | -10/Mines | Core integrity fell below 20% 1249 | -10/Mines | Met a Derelict shopkeep closing up shop 1386 | -10/Mines | A weapon hastily lodged in a ceiling crevice suddenly fell to the ground 1432 | -10/Mines | Excavation squad dispatched 1433 | -10/Mines | Discovered new exit (range 6) 1441 | -10/Mines | Entered Subcaves 1470 | -10/Subcaves | Learned Materials terminal intel 1544 | -10/Subcaves | Destroyed by 6J-IHJ(R) with Subdweller Laser Last Messages --------------- Dropped Flail. Acquired Scythe. ALERT: Derelict activity in mines confirmed. Dispatching additional escorted excavation squad. EXIT=FOUND LOCATION=UNKNOWN AMBIENT_HEAT=-10 GOAL=ESCAPE Acquired derelict log, extracted data. World map updated: -8/Materials. 0L-TN6(O) collects matter. Acquired derelict log, extracted data. Data stored: Materials terminal intel. 0L-TN6(O) collects matter. 0L-TN6(O) puts together Battle Rifle. EQ-ZKU(R) destroyed. Switching to secondary target: 2O-KDE(R). Critical hit (Destroy). Subatomizers dissect the Sub. Laser. Map ----- +----------------------------------------------------+ | ?????????????????????????????????????????????????? | | ?????????????????????????????????????????????????? | | ?????????????????????????????????????????????????? | | ?????????????????????????????????????????????????? | | ?????????????????????????????????????????????????? | | ?????????????????????????????????????????????????? | | ?????????????????????????????????????????????????? | | ????????????????????# ?????????????????##?# ????? | | ???????????????????# ???????????????? ## ????? | | ???????????????????# ???????????????? ????? | | ??????????????????## #??????????????? ????? | | ??????????????????# ##????????????? #?????? | | ??????????????????? ##?????????## ####???? | | ??????????????????? ##????????# ##??? | | ????????????????????? #??????### #??? | | ???????????????###????# #?????## #??? | | ??????????????## ???# #?##### #??? | | ???????????? ## ??# ### ##?? | | ????????????% ### #?? | | ????????????# #??? | | ????????????# #??? | | ???????????## ### #?? | | ?????????? ####### ## #?? | | ?????????? R[ ###??# #????##?? | | ????????????? ### RR## #?## ##??????? | | ?????????????????###### @### ### ##?????? | | ??????????????????????## #?## ## #####?? | | ???????????????????????####??### #?? | | ???????????????????????????????# ## #?? | | ???????????????????????????????### ### ###?? | | ?????????????????????????????????####?# ##??? | | ?????????????????????????????????????## ##?? | | ???????????????????????????????# ## #?? | | ???????????????????????????????# ###?? | | ??????????????????????????????# #???? | | ?????????????????????????????# #??? | | ??????????????????????????? #? | | ??????????????????????????# #? | | ??????????????????????????? #? | | ???????????????????????????### #? | | ?????????????????????????????# ## ### ##? | | ?????????????????????????????## #?## ###?? ##?? | | ??????????????????????????????###??? #?????##??? | | ???????????????????????????????????? ??????????? | | ???????????????????????????????????# ??????????? | | ???????????????????????????????????## ??????????? | | ???????????????????????????????????? ??????????? | | ???????????????????????????????????? ???????????? | | ?????????????????????????????????????????????????? | | ?????????????????????????????????????????????????? | +----------------------------------------------------+ Best States ------------- Heat Dissipation 25 Energy Generation 10 Energy Capacity 125 Matter Stores 300 Matter Capacity 300 Sight Range 16 Terrain Scan Density 10 Armor Coverage 225 Evasion (%) 50 Recoil Reduction 2 Item Schematics ----------------- None Robot Schematics ------------------ None Fabricated ------------ Nothing Repaired ---------- Nothing Alien Tech Used ----------------- None Achievements -------------- None Challenges ------------ None Game ------ Seed FortressEtherialInverter Manual? 0 Play Time 00:14:41 Cumulative 40.1 hours Start 2025.05.16 @ 18:29:20 End 2025.05.16 @ 18:43:01 Sessions 1 Manual Loads 0 Difficulty Rogue Special Mode None Game No. 40 Rogue 40 Adventurer 0 Explorer 0 Win Type - Total 1 Types 1/0/0/0/0/0/0/0/0/0 Lore% 22 Gallery% 27 Achievement% 27 Wizard Run 0 Options --------- Layout 1 ASCII 0 Keyboard 0 Movement Mouse Keybinds 0 Fullscreen 1 Font 24/Smallcaps Map View 50x35 Zoom Use 0% Tactical HUD 0 Map Filters NONE Filters NONE Steam 1 RUN: 8d919734-57e4-49e7-a595-0b519a752f85